fUSD/lending_fUSD_20240205
["ID","MTS","AMOUNT","RATE_DAILY","PERIOD"]
[313313826,1707141046485,-160.0,0.00035,2]
[313313827,1707141046494,-355.82897654,0.00035,2]
[313313828,1707141046503,-355.82897654,0.00035,2]
[313313829,1707141046512,-355.82897654,0.00035,2]
[313313830,1707141046521,-355.82897654,0.00035,2]
[313313831,1707141046532,-355.82897654,0.00035,2]
[313313832,1707141046542,-2738.13173277,0.0003505,2]
[313313833,1707141046551,-250.0,0.00035096,2]
[313313834,1707141046560,-3850.54133626,0.00035302,2]
[313313835,1707141046569,-150.0,0.00035328,2]
[313313836,1707141046579,-250.0,0.0003537,2]
[313313837,1707141046588,-150.0,0.000354,2]
[313313838,1707141046597,-152.57148148,0.00035451,2]
[313313839,1707141046607,-12150.59556998,0.00035459,10]
[313313840,1707141046616,-4016.66256344,0.00035519,2]
[313313841,1707141046625,-40537.40394206,0.00035522,10]
[313313842,1707141046634,-11397.70814651,0.00035522,10]
[313313843,1707141046643,-10526.61444776,0.00035585,10]
[313313844,1707141046653,-500.0,0.00035616,2]
[313313845,1707141046662,-500.0,0.00035616,2]
[313313846,1707141046671,-500.0,0.00035616,2]
[313313847,1707141046680,-500.0,0.00035616,2]
[313313848,1707141046690,-500.0,0.00035616,2]
[313313849,1707141046699,-500.0,0.00035616,2]
[313313850,1707141046708,-500.0,0.00035616,2]
[313313851,1707141046717,-500.0,0.00035616,2]
[313313852,1707141046727,-500.0,0.00035616,2]
[313313853,1707141046737,-500.0,0.00035616,2]
[313313854,1707141046746,-500.0,0.00035616,2]
[313313855,1707141046756,-500.0,0.00035616,2]
[313313856,1707141046765,-500.0,0.00035616,2]
[313313857,1707141046773,-500.0,0.00035616,2]
[313313858,1707141046782,-500.0,0.00035616,2]
[313313859,1707141046793,-500.0,0.00035616,2]
[313313860,1707141046802,-500.0,0.00035616,2]
[313313861,1707141046811,-500.0,0.00035616,2]
[313313862,1707141046820,-500.0,0.00035616,2]
[313313863,1707141046829,-500.0,0.00035616,2]
[313313864,1707141046839,-10000.0,0.00035616,2]
[313313865,1707141046847,-250.0,0.00035644,2]
[313313866,1707141046856,-1358.1,0.00035676,2]
[313313867,1707141046866,-39987.63410156,0.00035779,13]
[313313868,1707141046875,-21356.68870854,0.00035779,13]
[313313869,1707141046883,-155.0,0.0003585,2]
[313313870,1707141046892,-150.0,0.00035905,2]
[313313871,1707141046901,-250.0,0.00035918,2]
[313313872,1707141046911,-425.425,0.0003593,2]
[313313873,1707141046920,-150.0,0.0003593,2]
[313313874,1707141046930,-1045.8258072,0.00036,2]
[313313875,1707141046939,-355.74,0.00036164,2]
[313313876,1707141046949,-250.0,0.00036192,2]
[313313877,1707141046958,-151.11287143,0.00036244,2]
[313313878,1707141046967,-161.0,0.00036247,2]
[313313879,1707141046977,-1000.0,0.0003625,2]
[313313880,1707141046986,-3000.0,0.0003627,2]
[313313881,1707141046995,-169.94,0.00036438,2]
[313313882,1707141047004,-470.77891623,0.00036466,2]
[313313883,1707141047014,-150.0,0.00036482,2]
[313313884,1707141047022,-152.57148148,0.00036592,2]
[313313885,1707141047030,-200.0,0.000367,30]
[313313886,1707141047039,-3850.54133626,0.00036881,2]
[313313887,1707141047050,-10000.0,0.00036934,2]
[313313888,1707141047063,-650.0,0.00037,3]
[313313889,1707141047073,-1045.8258072,0.00037,2]
[313313890,1707141047082,-671.49248102,0.00037,7]
[313313891,1707141047092,-150.0,0.00037059,2]
[313313892,1707141047102,-166.10491109,0.00037078,7]
[313313893,1707141047111,-11548.71831169,0.00037082,10]
[313313894,1707141047121,-155.0,0.0003722,2]
[313313895,1707141047130,-150.58929576,0.00037356,7]
[313313896,1707141047140,-206.0,0.00037496,25]
[313313897,1707141047150,-1000.0,0.000375,2]
[313313898,1707141047160,-152.45508223,0.0003753,7]
[313313899,1707141047170,-150.0,0.00037635,2]
[313313900,1707141047180,-152.45508223,0.00037642,7]
[313313901,1707141047190,-152.57148148,0.00037732,2]
[313313902,1707141047200,-440.72022514,0.00037799,2]
[313313903,1707141047210,-341.33264365,0.00037799,2]
[313313904,1707141047220,-3000.0,0.000378,20]
[313313905,1707141047229,-3000.0,0.0003781,20]
[313313906,1707141047239,-5449.297538,0.0003782,20]
[313313907,1707141047249,-4223.2055981,0.00037822,2]
[313313908,1707141047258,-20007.4443333,0.00037822,2]
[313313909,1707141047268,-66361.008,0.00037822,2]
[313313910,1707141047277,-12982.1629949,0.00037848,2]
[313313911,1707141047286,-24690.301324,0.00037848,2]
[313313912,1707141047295,-75285.9166666,0.00037848,2]
[313313913,1707141047305,-3224.68654063,0.0003788,2]
[313313914,1707141047314,-152.1338987,0.00037891,7]
[313313915,1707141047323,-1000.0,0.000379,2]
[313313916,1707141047332,-7412.64545604,0.000379,2]
[313313917,1707141047342,-623070.612298,0.000379,3]
[313313918,1707141047352,-1358.1,0.0003794,2]
[313313919,1707141047362,-508.16906719,0.00037975,29]
[313313920,1707141047371,-1045.8258072,0.00038,2]
[313313921,1707141047380,-150.1,0.00038018,2]
[313313922,1707141047390,-150.0,0.00038212,2]
[313313923,1707141047399,-10000.0,0.00038252,2]
[313313924,1707141047409,-152.1338987,0.00038288,7]
[313313925,1707141047418,-152.1338987,0.0003835,7]
[313313926,1707141047427,-151.55,0.00038356,2]
[313313927,1707141047438,-3850.54133626,0.00038459,2]
[313313928,1707141047447,-166.10491109,0.00038518,7]
[313313929,1707141047457,-155.0,0.0003859,2]
[313313930,1707141047466,-152.1338987,0.00038666,7]
[313313931,1707141047476,-196.24525103,0.00038688,7]
[313313932,1707141047486,-166.51155524,0.00038739,2]
[313313933,1707141047496,-1000.0,0.0003875,2]
[313313934,1707141047505,-3000.0,0.0003877,2]
[313313935,1707141047515,-514.7730575,0.0003878,2]
[313313936,1707141047524,-150.0,0.00038789,2]
[313313937,1707141047533,-152.45508223,0.00038807,7]
[313313938,1707141047543,-152.57148148,0.00038873,2]
[313313939,1707141047554,-14512.95782482,0.0003888,2]
[313313940,1707141047563,-14512.95782478,0.0003888,2]
[313313941,1707141047573,-14512.95782478,0.0003888,2]
[313313942,1707141047582,-14512.95782478,0.0003888,2]
[313313943,1707141047592,-14512.95782478,0.0003888,2]
[313313944,1707141047602,-14512.95782478,0.0003888,2]
[313313945,1707141047611,-19351.30920503,0.0003897,2]
[313313946,1707141047620,-166.10491109,0.0003897,7]
[313313947,1707141047629,-151.45059072,0.00038971,7]
[313313948,1707141047639,-283.10388661,0.0003898,2]
[313313949,1707141047648,-980.14314855,0.00039,4]
[313313950,1707141047657,-700.0,0.00039,3]
[313313951,1707141047667,-1433.14480854,0.00039,2]
[313313952,1707141047676,-1045.8258072,0.00039,2]
[313313953,1707141047686,-4000.0,0.00039,2]
[313313954,1707141047695,-154.41949831,0.0003909,7]
[313313955,1707141047705,-152.45508223,0.00039125,7]
[313313956,1707141047714,-152.45508223,0.00039134,7]
[313313957,1707141047723,-152.1338987,0.00039163,7]
[313313958,1707141047733,-1000.0,0.0003926,2]
[313313959,1707141047743,-153.77,0.000393,3]
[313313960,1707141047752,-153.77,0.000393,3]
[313313961,1707141047762,-150.0,0.00039366,2]
[313313962,1707141047771,-150.58929576,0.00039392,7]
[313313963,1707141047780,-152.45508223,0.00039416,7]
[313313964,1707141047789,-11548.71831169,0.00039445,13]
[313313965,1707141047799,-367.48459673,0.000395,4]
[313313966,1707141047808,-10000.0,0.0003957,2]
[313313967,1707141047818,-152.1338987,0.00039656,7]
[313313968,1707141047827,-4016.66256344,0.00039823,2]
[313313969,1707141047837,-440.72022514,0.00039825,2]
[313313970,1707141047846,-341.33264365,0.00039825,2]
[313313971,1707141047856,-4657.283926,0.00039826,2]
[313313972,1707141047865,-83210.75,0.00039826,2]
[313313973,1707141047874,-20300.889,0.00039826,2]
[313313974,1707141047883,-80872.3253333,0.00039826,2]
[313313975,1707141047893,-13137.838202,0.00039853,2]
[313313976,1707141047902,-24986.3743108,0.00039853,2]
[313313977,1707141047911,-222566.04987976,0.0003988,2]
[313313978,1707141047921,-150.0,0.00039942,2]
[313313979,1707141047930,-155.0,0.0003996,2]
[313313980,1707141047939,-151.45059072,0.00039977,7]
[313313981,1707141047949,-379.93319474,0.0003998,5]
[313313982,1707141047959,-50000.0,0.0004,20]
[313313983,1707141047969,-1000.0,0.0004,2]
[313313984,1707141047978,-11857.28443913,0.0004,5]
[313313985,1707141047988,-4406.92,0.0004,17]
[313313986,1707141048000,-1000.0,0.0004,9]
[313313987,1707141048009,-463.54357871,0.0004,2]
[313313988,1707141048019,-255.0,0.0004,12]
[313313989,1707141048029,-164.45030469,0.0004,4]
[313313990,1707141048038,-255.0,0.0004,12]
[313313991,1707141048049,-255.0,0.0004,12]
[313313992,1707141048059,-255.0,0.0004,12]
[313313993,1707141048069,-155.11154385,0.0004,2]
[313313994,1707141048080,-191.16061133,0.0004,2]
[313313995,1707141048090,-181.61216374,0.0004,2]
[313313996,1707141048100,-255.0,0.0004,12]
[313313997,1707141048110,-14981.3,0.0004,2]
[313313998,1707141048119,-255.0,0.0004,12]
[313313999,1707141048128,-199.77531156,0.0004,30]
[313314000,1707141048138,-152.57148148,0.00040014,6]
[313314001,1707141048149,-3850.54133626,0.00040038,5]
[313314002,1707141048160,-20000.0,0.000401,2]
[313314003,1707141048170,-1358.1,0.00040204,2]
[313314004,1707141048179,-152.45508223,0.0004034,30]
[313314005,1707141048188,-286.41227695,0.00040459,3]
[313314006,1707141048197,-219.91406536,0.00040459,3]
[313314007,1707141048207,-1735.63582076,0.00040459,2]
[313314008,1707141048216,-14512.95782478,0.00040464,2]
[313314009,1707141048225,-150.0,0.00040519,2]
[313314010,1707141048246,-1000.0,0.000406,2]
[313314011,1707141048257,-355.74,0.00040685,2]
[313314012,1707141048268,-1000.0,0.00040733,2]
[313314013,1707141048278,-231.11,0.00040878,10]
[313314014,1707141048287,-10000.0,0.00040888,2]
[313314015,1707141048297,-50000.0,0.00041,21]
[313314016,1707141048307,-1055.0,0.00041,9]
[313314017,1707141048316,-1200.0,0.00041,42]
[313314018,1707141048326,-750.0,0.00041,3]
[313314019,1707141048336,-800.0,0.00041,2]
[313314020,1707141048346,-623.61635149,0.00041,2]
[313314021,1707141048355,-200.0,0.00041,30]
[313314022,1707141048365,-508.16906719,0.0004105,33]
[313314023,1707141048374,-5091.362254,0.00041067,2]
[313314024,1707141048383,-91135.5833333,0.00041067,2]
[313314025,1707141048393,-20594.3336666,0.00041067,2]
[313314026,1707141048402,-95383.6426666,0.00041067,2]
[313314027,1707141048412,-13293.5134092,0.00041068,2]
[313314028,1707141048421,-25282.4472976,0.00041068,2]
[313314029,1707141048430,-332.79,0.00041085,10]
[313314030,1707141048439,-277.33,0.00041085,10]
[313314031,1707141048449,-4016.66256344,0.00041092,2]
[313314032,1707141048459,-440.72022514,0.00041094,3]
[313314033,1707141048468,-341.33264365,0.00041094,3]
[313314034,1707141048479,-500.0,0.00041095,2]
[313314035,1707141048489,-264.5166843,0.00041095,2]
[313314036,1707141048498,-500.0,0.00041095,2]
[313314037,1707141048508,-332.17288707,0.00041095,2]
[313314038,1707141048518,-500.0,0.00041095,2]
[313314039,1707141048528,-504.13539804,0.00041095,2]
[313314040,1707141048537,-500.0,0.00041095,2]
[313314041,1707141048547,-500.0,0.00041095,2]
[313314042,1707141048557,-500.0,0.00041095,2]
[313314043,1707141048566,-500.0,0.00041095,2]
[313314044,1707141048575,-500.0,0.00041095,2]
[313314045,1707141048585,-517.84267309,0.00041095,2]
[313314046,1707141048596,-521.63136084,0.00041095,2]
[313314047,1707141048605,-500.0,0.00041095,2]
[313314048,1707141048614,-500.0,0.00041095,2]
[313314049,1707141048624,-500.0,0.00041095,2]
[313314050,1707141048634,-631.75047253,0.00041095,2]
[313314051,1707141048643,-500.0,0.00041095,2]
[313314052,1707141048655,-500.0,0.00041095,2]
[313314053,1707141048664,-156.01256986,0.00041095,2]
[313314054,1707141048674,-441.25549601,0.00041095,2]
[313314055,1707141048685,-500.0,0.00041095,2]
[313314056,1707141048694,-500.0,0.00041095,2]
[313314057,1707141048705,-500.0,0.00041095,2]
[313314058,1707141048714,-500.0,0.00041095,2]
[313314059,1707141048724,-500.0,0.00041095,2]
[313314060,1707141048735,-500.0,0.00041095,2]
[313314061,1707141048748,-500.0,0.00041095,2]
[313314062,1707141048758,-163.8,0.00041095,2]
[313314063,1707141048768,-500.0,0.00041095,2]
[313314064,1707141048778,-444.84049127,0.00041095,2]
[313314065,1707141048787,-250.0,0.00041095,2]
[313314066,1707141048796,-500.0,0.00041095,2]
[313314067,1707141048806,-500.0,0.00041095,2]
[313314068,1707141048815,-500.0,0.00041095,2]
[313314069,1707141049025,-285.28590113,0.00041095,2]
[313314070,1707141049035,-202.73328955,0.00041095,2]
[313314071,1707141049045,-500.0,0.00041095,2]
[313314072,1707141049056,-500.0,0.00041095,2]
[313314073,1707141049065,-500.0,0.00041095,2]
[313314074,1707141049076,-502.76958215,0.00041095,2]
[313314075,1707141049085,-500.0,0.00041095,2]
[313314076,1707141049096,-500.0,0.00041095,2]
[313314077,1707141049106,-511.59349784,0.00041095,2]
[313314078,1707141049116,-388.88487887,0.00041095,2]
[313314079,1707141049126,-231.07760463,0.00041095,2]
[313314080,1707141049136,-500.0,0.00041095,2]
[313314081,1707141049146,-500.0,0.00041095,2]
[313314082,1707141049157,-202.2502855,0.00041095,2]
[313314083,1707141049167,-478.02280192,0.00041095,2]
[313314084,1707141049176,-1258.02,0.00041095,2]
[313314085,1707141049190,-435.64287516,0.00041095,2]
[313314086,1707141049201,-500.0,0.00041095,2]
[313314087,1707141049211,-532.20424103,0.00041095,2]
[313314088,1707141049220,-500.0,0.00041095,2]
[313314089,1707141049232,-500.0,0.00041095,2]
[313314090,1707141049242,-767.26,0.00041095,2]
[313314091,1707141049252,-500.0,0.00041095,2]
[313314092,1707141049261,-556.42268988,0.00041095,2]
[313314093,1707141049270,-881.23,0.00041095,2]
[313314094,1707141049280,-500.0,0.00041095,2]
[313314095,1707141049289,-500.0,0.00041095,2]
[313314096,1707141049299,-533.36999977,0.00041095,2]
[313314097,1707141049309,-522.1274012,0.00041095,2]
[313314098,1707141049319,-550.0,0.00041095,2]
[313314099,1707141049329,-523.43552081,0.00041095,2]
[313314100,1707141049339,-515.53862604,0.00041095,2]
[313314101,1707141049349,-563.11814932,0.00041095,2]
[313314102,1707141049359,-500.0,0.00041095,2]
[313314103,1707141049369,-500.0,0.00041095,2]
[313314104,1707141049378,-500.0,0.00041095,2]
[313314105,1707141049388,-500.0,0.00041095,2]
[313314106,1707141049397,-500.0,0.00041095,2]
[313314107,1707141049407,-731.54,0.00041095,2]
[313314108,1707141049416,-500.0,0.00041095,2]
[313314109,1707141049425,-500.0,0.00041095,2]
[313314110,1707141049435,-574.90837768,0.00041095,2]
[313314111,1707141049444,-500.0,0.00041095,2]
[313314112,1707141049454,-500.0,0.00041095,2]
[313314113,1707141049464,-551.29258193,0.00041095,2]
[313314114,1707141049473,-500.0,0.00041095,2]
[313314115,1707141049482,-500.0,0.00041095,7]
[313314116,1707141049492,-500.0,0.00041095,2]
[313314117,1707141049501,-553.79830084,0.00041095,2]
[313314118,1707141049510,-500.0,0.00041095,2]
[313314119,1707141049520,-500.0,0.00041095,2]
[313314120,1707141049533,-500.0,0.00041095,2]
[313314121,1707141049545,-452.23297703,0.00041095,2]
[313314122,1707141049557,-218.47902647,0.00041095,2]
[313314123,1707141049567,-696.59,0.00041095,2]
[313314124,1707141049577,-544.0045746,0.00041095,2]
[313314125,1707141049586,-500.0,0.00041095,2]
[313314126,1707141049596,-213.71237784,0.00041095,2]
[313314127,1707141049606,-500.0,0.00041095,2]
[313314128,1707141049617,-500.0,0.00041095,2]
[313314129,1707141049626,-1000.0,0.00041095,7]
[313314130,1707141049636,-500.0,0.00041095,2]
[313314131,1707141049645,-500.0,0.00041095,2]
[313314132,1707141049655,-500.0,0.00041095,2]
[313314133,1707141049664,-500.0,0.00041095,2]
[313314134,1707141049673,-500.0,0.00041095,2]
[313314135,1707141049684,-500.0,0.00041095,2]
[313314136,1707141049693,-500.0,0.00041095,2]
[313314137,1707141049702,-500.0,0.00041095,2]
[313314138,1707141049712,-500.0,0.00041095,2]
[313314139,1707141049721,-500.0,0.00041095,2]
[313314140,1707141049730,-982.48,0.00041095,2]
[313314141,1707141049740,-217.6764994,0.00041095,2]
[313314142,1707141049749,-500.0,0.00041095,2]
[313314143,1707141049758,-500.0,0.00041095,2]
[313314144,1707141049767,-500.0,0.00041095,2]
[313314145,1707141049777,-500.0,0.00041095,2]
[313314146,1707141049786,-621.15032386,0.00041095,2]
[313314147,1707141049795,-500.0,0.00041095,2]
[313314148,1707141049805,-500.0,0.00041095,2]
[313314149,1707141049815,-616.94668963,0.00041095,2]
[313314150,1707141049824,-500.0,0.00041095,2]
[313314151,1707141049833,-500.0,0.00041095,2]
[313314152,1707141049842,-500.0,0.00041095,2]
[313314153,1707141049852,-500.0,0.00041095,2]
[313314154,1707141049861,-1951.09,0.00041095,2]
[313314155,1707141049870,-500.0,0.00041095,2]
[313314156,1707141049879,-500.0,0.00041095,2]
[313314157,1707141049888,-500.0,0.00041095,2]
[313314158,1707141049897,-500.0,0.00041095,2]
[313314159,1707141049907,-630.27,0.00041095,2]
[313314160,1707141049916,-883.69,0.00041095,2]
[313314161,1707141049926,-500.0,0.00041095,2]
[313314162,1707141049938,-1662.45,0.00041095,2]
[313314163,1707141049948,-500.0,0.00041095,2]
[313314164,1707141049958,-500.0,0.00041095,2]
[313314165,1707141049967,-500.0,0.00041095,2]
[313314166,1707141049976,-500.0,0.00041095,2]
[313314167,1707141049985,-606.13056283,0.00041095,2]
[313314168,1707141049995,-543.57,0.00041095,2]
[313314169,1707141050005,-500.0,0.00041095,2]
[313314170,1707141050014,-500.0,0.00041095,2]
[313314171,1707141050024,-1413.28,0.00041095,2]
[313314172,1707141050033,-500.0,0.00041095,2]
[313314173,1707141050044,-500.0,0.00041095,2]
[313314174,1707141050056,-500.0,0.00041095,2]
[313314175,1707141050066,-500.0,0.00041095,2]
[313314176,1707141050076,-2500.0,0.00041095,2]
[313314177,1707141050085,-500.0,0.00041095,2]
[313314178,1707141050096,-547.5,0.00041095,2]
[313314179,1707141050106,-500.0,0.00041095,2]
[313314180,1707141050115,-500.0,0.00041095,2]
[313314181,1707141050125,-500.0,0.00041095,2]
[313314182,1707141050136,-500.0,0.00041095,2]
[313314183,1707141050146,-857.72,0.00041095,2]
[313314184,1707141050156,-500.0,0.00041095,2]
[313314185,1707141050165,-719.71,0.00041095,2]
[313314186,1707141050175,-667.71,0.00041095,2]
[313314187,1707141050187,-500.0,0.00041095,2]
[313314188,1707141050197,-448.51618565,0.00041095,2]
[313314189,1707141050217,-500.0,0.00041095,2]
[313314190,1707141050229,-640.9,0.00041095,2]
[313314191,1707141050238,-211.52202205,0.00041095,2]
[313314192,1707141050248,-508.22798292,0.00041095,2]
[313314193,1707141050258,-545.86600534,0.00041095,2]
[313314194,1707141050268,-500.0,0.00041095,2]
[313314195,1707141050278,-500.0,0.00041095,2]
[313314196,1707141050288,-500.0,0.00041095,2]
[313314197,1707141050298,-564.4502617,0.00041095,2]
[313314198,1707141050308,-605.57490786,0.00041095,2]
[313314199,1707141050318,-949.09,0.00041095,2]
[313314200,1707141050328,-500.0,0.00041095,2]
[313314201,1707141050338,-500.0,0.00041095,2]
[313314202,1707141050349,-500.0,0.00041095,2]
[313314203,1707141050359,-500.0,0.00041095,2]
[313314204,1707141050368,-500.0,0.00041095,2]
[313314205,1707141050379,-500.0,0.00041095,2]
[313314206,1707141050389,-500.0,0.00041095,2]
[313314207,1707141050399,-500.0,0.00041095,2]
[313314208,1707141050409,-500.0,0.00041095,2]
[313314209,1707141050419,-500.0,0.00041095,2]
[313314210,1707141050430,-500.0,0.00041095,2]
[313314211,1707141050442,-500.0,0.00041095,2]
[313314212,1707141050451,-547.63,0.00041095,2]
[313314213,1707141050462,-442.09823728,0.00041095,2]
[313314214,1707141050472,-500.0,0.00041095,2]
[313314215,1707141050482,-1075.46,0.00041095,2]
[313314216,1707141050493,-212.68715419,0.00041095,2]
[313314217,1707141050503,-569.02142842,0.00041095,2]
[313314218,1707141050514,-500.0,0.00041095,2]
[313314219,1707141050524,-338.68288348,0.00041095,2]
[313314220,1707141050534,-500.0,0.00041095,2]
[313314221,1707141050545,-476.92827703,0.00041095,2]
[313314222,1707141050555,-500.0,0.00041095,2]
[313314223,1707141050565,-477.21268377,0.00041095,2]
[313314224,1707141050575,-500.0,0.00041095,2]
[313314225,1707141050585,-223.43905883,0.00041095,2]
[313314226,1707141050594,-517.66,0.00041095,2]
[313314227,1707141050605,-500.0,0.00041095,2]
[313314228,1707141050614,-500.0,0.00041095,2]
[313314229,1707141050624,-299.04373226,0.00041095,2]
[313314230,1707141050635,-500.0,0.00041095,2]
[313314231,1707141050645,-500.0,0.00041095,2]
[313314232,1707141050656,-550.91,0.00041095,2]
[313314233,1707141050667,-1349.54,0.00041095,2]
[313314234,1707141050677,-601.10873793,0.00041095,2]
[313314235,1707141050689,-172.33231393,0.00041095,2]
[313314236,1707141050699,-500.0,0.00041095,2]
[313314237,1707141050708,-585.08185541,0.00041095,2]
[313314238,1707141050718,-500.0,0.00041095,2]
[313314239,1707141050727,-500.0,0.00041095,2]
[313314240,1707141050737,-500.0,0.00041095,30]
[313314241,1707141050747,-615.59864605,0.00041095,2]
[313314242,1707141050758,-500.0,0.00041095,2]
[313314243,1707141050768,-613.72,0.00041095,2]
[313314244,1707141050778,-1006.73,0.00041095,2]
[313314245,1707141050788,-1250.19,0.00041095,2]
[313314246,1707141050797,-500.0,0.00041095,2]
[313314247,1707141050807,-588.90264727,0.00041095,2]
[313314248,1707141050816,-1273.66,0.00041095,2]
[313314249,1707141050827,-500.0,0.00041095,2]
[313314250,1707141050837,-534.92950672,0.00041095,2]
[313314251,1707141050846,-522.44333619,0.00041095,2]
[313314252,1707141050856,-500.0,0.00041095,2]
[313314253,1707141050866,-6044.25,0.00041095,2]
[313314254,1707141050876,-500.0,0.00041095,2]
[313314255,1707141050886,-500.0,0.00041095,2]
[313314256,1707141050895,-511.01065991,0.00041095,2]
[313314257,1707141050905,-500.0,0.00041095,2]
[313314258,1707141050914,-1144.85,0.00041095,2]
[313314259,1707141050924,-500.0,0.00041095,2]
[313314260,1707141050935,-646.385,0.00041095,2]
[313314261,1707141050946,-500.0,0.00041095,2]
[313314262,1707141050955,-1340.06,0.00041095,2]
[313314263,1707141050965,-1146.57,0.00041095,2]
[313314264,1707141050975,-631.11131791,0.00041095,2]
[313314265,1707141050984,-753.23,0.00041095,2]
[313314266,1707141050993,-500.0,0.00041095,2]
[313314267,1707141051003,-1749.33,0.00041095,5]
[313314268,1707141051013,-500.0,0.00041095,2]
[313314269,1707141051022,-500.0,0.00041095,2]
[313314270,1707141051032,-973.94,0.00041095,2]
[313314271,1707141051042,-230.62330557,0.00041095,2]
[313314272,1707141051054,-883.86,0.00041095,2]
[313314273,1707141051063,-1114.96,0.00041095,2]
[313314274,1707141051073,-500.0,0.00041095,2]
[313314275,1707141051085,-500.0,0.00041095,2]
[313314276,1707141051095,-1040.76,0.00041095,2]
[313314277,1707141051104,-500.0,0.00041095,2]
[313314278,1707141051115,-500.0,0.00041095,2]
[313314279,1707141051126,-1579.06,0.00041095,2]
[313314280,1707141051136,-500.0,0.00041095,2]
[313314281,1707141051145,-500.0,0.00041095,2]
[313314282,1707141051156,-500.0,0.00041095,2]
[313314283,1707141051167,-708.83,0.00041095,2]
[313314284,1707141051177,-695.17,0.00041095,2]
[313314285,1707141051190,-4647.44,0.00041095,2]
[313314286,1707141051200,-526.64174942,0.00041095,2]
[313314287,1707141051209,-794.97,0.00041095,2]
[313314288,1707141051219,-500.0,0.00041095,20]
[313314289,1707141051229,-2815.53,0.00041095,2]
[313314290,1707141051239,-16636.33,0.00041095,2]
[313314291,1707141051249,-563.07,0.00041095,2]
[313314292,1707141051259,-500.0,0.00041095,2]
[313314293,1707141051269,-874.74,0.00041095,2]
[313314294,1707141051279,-882.21,0.00041095,2]
[313314295,1707141051289,-613.72,0.00041095,2]
[313314296,1707141051299,-201.53406227,0.00041095,2]
[313314297,1707141051309,-500.0,0.00041095,2]
[313314298,1707141051319,-500.0,0.00041095,2]
[313314299,1707141051328,-1232.66,0.00041095,2]
[313314300,1707141051338,-218.91914673,0.00041095,2]
[313314301,1707141051348,-500.0,0.00041095,2]
[313314302,1707141051358,-500.0,0.00041095,2]
[313314303,1707141051368,-500.0,0.00041095,2]
[313314304,1707141051378,-786.94,0.00041095,2]
[313314305,1707141051388,-619.7,0.00041095,2]
[313314306,1707141051398,-1817.8,0.00041095,2]
[313314307,1707141051407,-500.0,0.00041095,2]
[313314308,1707141051417,-500.0,0.00041095,2]
[313314309,1707141051427,-500.0,0.00041095,2]
[313314310,1707141051437,-2945.36,0.00041095,2]
[313314311,1707141051447,-3282.54,0.00041095,2]
[313314312,1707141051457,-1282.34,0.00041095,2]
[313314313,1707141051467,-540.19493385,0.00041095,2]
[313314314,1707141051476,-500.0,0.00041095,2]
[313314315,1707141051486,-500.0,0.00041095,2]
[313314316,1707141051496,-500.0,0.00041095,2]
[313314317,1707141051505,-500.0,0.00041095,2]
[313314318,1707141051514,-500.0,0.00041095,2]
[313314319,1707141051524,-3762.66,0.00041095,2]
[313314320,1707141051533,-902.51,0.00041095,2]
[313314321,1707141051543,-811.91,0.00041095,2]
[313314322,1707141051553,-3153.57,0.00041095,2]
[313314323,1707141051563,-1620.37,0.00041095,2]
[313314324,1707141051573,-1709.25,0.00041095,2]
[313314325,1707141051583,-500.0,0.00041095,2]